[Event "Couzeix rapide 9 rondes cadences multiples"]
[Site "Couzeix Chess Club, France"]
[Date "2019.03.10"]
[Round "5.2"]
[White "Lougnon, Florian"]
[Black "Jackson, Edgar"]
[Result "0-1"]
[TimeControl "5'+10''pm,  7'+10''pm, 10'+10''pm,"]
[WhiteElo "1783"]
[BlackElo "1701"]

1. b3 {[%clk 00:07:19]} Nf6 {[%clk 00:07:14]} {[%emt 00:00:06]} 2. Bb2 {[%clk
00:07:29]} e6 {[%clk 00:07:20]} {[%emt 00:00:04]} 3. e3 {[%clk 00:07:38]}
{[%emt 00:00:01]} c5 {[%clk 00:07:23]} {[%emt 00:00:07]} 4. Nf3 {[%clk
00:07:47]} {[%emt 00:00:01]} Nc6 {[%clk 00:07:20]} {[%emt 00:00:13]} 5. Be2
{[%clk 00:07:49]} {[%emt 00:00:08]} Be7 {[%clk 00:07:27]} {[%emt 00:00:02]} 6.
O-O {[%clk 00:07:58]} {[%emt 00:00:02]} b6 {[%clk 00:07:32]} {[%emt 00:00:05]}
7. d4 {[%clk 00:08:04]} {[%emt 00:00:04]} O-O {[%clk 00:07:12]} {[%emt
00:00:29]} 8. c4 {[%clk 00:08:13]} {[%emt 00:00:02]} d5 {[%clk 00:07:10]}
{[%emt 00:00:12]} 9. dxc5 {[%clk 00:07:00]} {[%emt 00:01:23]} Bxc5 {[%clk
00:06:21]} {[%emt 00:00:58]} 10. cxd5 {[%clk 00:06:51]} {[%emt 00:00:19]} Nxd5
{[%clk 00:06:30]} {[%emt 00:00:02]} 11. Nc3 {[%clk 00:06:57]} {[%emt 00:00:04]}
Nce7 {[%clk 00:05:09]} {[%emt 00:01:30]} 12. Qc2 {[%clk 00:05:28]} {[%emt
00:01:39]} Bb7 {[%clk 00:04:46]} {[%emt 00:00:33]} 13. Ng5 {[%clk 00:04:40]}
{[%emt 00:00:58]} Ng6 {[%clk 00:04:13]} {[%emt 00:00:42]} 14. Rfd1 {[%clk
00:04:05]} {[%emt 00:00:45]} Qxg5 {[%clk 00:04:18]} {[%emt 00:00:05]} 15. Ne4
{[%clk 00:03:52]} {[%emt 00:00:23]} Qe7 {[%clk 00:04:01]} {[%emt 00:00:27]} 16.
Nxc5 {[%clk 00:03:01]} {[%emt 00:01:01]} Qxc5 {[%clk 00:04:02]} {[%emt
00:00:09]} 17. Qd2 {[%clk 00:02:48]} {[%emt 00:00:24]} Nf6 {[%clk 00:03:11]}
{[%emt 00:01:01]} 18. Bd4 {[%clk 00:02:53]} {[%emt 00:00:05]} Qg5 {[%clk
00:03:01]} {[%emt 00:00:19]} 19. Bf1 {[%clk 00:02:58]} {[%emt 00:00:05]} Nh4
{[%clk 00:02:58]} {[%emt 00:00:13]} 20. Qb2 {[%clk 00:02:14]} {[%emt 00:00:55]}
Nxg2 {[%clk 00:02:25]} {[%emt 00:00:43]} 21. Bxf6 {[%clk 00:02:21]} {[%emt
00:00:03]} gxf6 {[%clk 00:02:26]} {[%emt 00:00:09]} 22. f4 {[%clk 00:01:46]}
{[%emt 00:00:45]} Nxf4+ {[%clk 00:02:33]} {[%emt 00:00:02]} 23. Kf2 {[%clk
00:01:42]} {[%emt 00:00:15]} Qh4+ {[%clk 00:02:23]} {[%emt 00:00:19]} 24. Kg1
{[%clk 00:01:42]} {[%emt 00:00:11]} Qg4+ {[%clk 00:01:17]} {[%emt 00:01:16]} 25.
Kf2 {[%clk 00:01:46]} {[%emt 00:00:06]} Qf3+ {[%clk 00:01:20]} {[%emt
00:00:06]} 26. Ke1 {[%clk 00:01:50]} {[%emt 00:00:07]} Qxe3+ {[%clk 00:01:22]}
{[%emt 00:00:07]} 27. Be2 {[%clk 00:01:59]} {[%emt 00:00:03]} Nxe2 {[%clk
00:01:05]} {[%emt 00:00:27]} 28. Qxe2 {[%clk 00:01:52]} {[%emt 00:00:17]} Qxe2+
{[%clk 00:01:13]} {[%emt 00:00:02]} 29. Kxe2 {[%clk 00:02:02]} Rad8 {[%clk
00:01:17]} {[%emt 00:00:06]} 30. Rg1+ {[%clk 00:02:05]} {[%emt 00:00:07]} Kh8
{[%clk 00:01:26]} {[%emt 00:00:01]} 31. Rac1 {[%clk 00:02:14]} Rg8 {[%clk
00:01:28]} {[%emt 00:00:08]} 32. Rxg8+ {[%clk 00:02:02]} {[%emt 00:00:23]} Rxg8
{[%clk 00:01:35]} {[%emt 00:00:03]} 33. Rc7 {[%clk 00:02:11]} Rg2+ {[%clk
00:01:35]} {[%emt 00:00:10]} 34. Kf1 {[%clk 00:02:21]} Bd5 {[%clk 00:01:43]}
{[%emt 00:00:02]} 35. Rxf7 {[%clk 00:02:28]} {[%emt 00:00:02]} f5 {[%clk
00:01:44]} {[%emt 00:00:09]} 36. Rxa7 {[%clk 00:02:37]} {[%emt 00:00:01]} Rxh2
{[%clk 00:01:46]} {[%emt 00:00:08]} 37. Ra6 {[%clk 00:02:45]} {[%emt 00:00:02]}
Kg7 {[%clk 00:01:46]} {[%emt 00:00:09]} 38. Rxb6 {[%clk 00:02:41]} {[%emt
00:00:14]} Rxa2 {[%clk 00:01:52]} {[%emt 00:00:05]} 39. b4 {[%clk 00:02:51]}
{[%emt 00:00:01]} Rb2 {[%clk 00:01:57]} {[%emt 00:00:04]} 40. b5 {[%clk
00:02:59]} {[%emt 00:00:02]} Bc4+ {[%clk 00:02:03]} {[%emt 00:00:04]} 41. Ke1
{[%clk 00:03:08]} {[%emt 00:00:02]} Rxb5 {[%emt 00:00:03]} 0-1

[Event "Couzeix rapide 9 rondes cadences multiples"]
[Site "Couzeix Chess Club, France"]
[Date "2019.03.10"]
[Round "5.3"]
[White "Owen, Michael"]
[Black "Seddik, Houssem"]
[Result "1/2-1/2"]
[TimeControl "5'+10''pm,  7'+10''pm, 10'+10''pm,"]
[WhiteElo "1693"]
[BlackElo "1492"]

1. Nf3 {[%clk 00:07:15]} {[%emt 00:00:03]} d5 {[%clk 00:07:20]} 2. d4 {[%clk
00:07:21]} {[%emt 00:00:04]} c6 {[%clk 00:07:26]} {[%emt 00:00:05]} 3. b3
{[%clk 00:07:17]} {[%emt 00:00:14]} Bg4 {[%clk 00:07:34]} {[%emt 00:00:02]} 4.
Nbd2 {[%clk 00:07:25]} {[%emt 00:00:02]} f5 {[%clk 00:07:38]} {[%emt 00:00:06]}
5. Ba3 {[%clk 00:07:20]} {[%emt 00:00:15]} Nf6 {[%clk 00:07:38]} {[%emt
00:00:09]} 6. Ne5 {[%clk 00:07:21]} {[%emt 00:00:09]} Bh5 {[%clk 00:07:33]}
{[%emt 00:00:14]} 7. Ndf3 {[%clk 00:06:59]} {[%emt 00:00:31]} Nbd7 {[%clk
00:07:43]} {[%emt 00:00:01]} 8. Bb2 {[%clk 00:06:43]} {[%emt 00:00:26]} e6
{[%clk 00:07:38]} {[%emt 00:00:14]} 9. e3 {[%clk 00:06:41]} {[%emt 00:00:12]}
Bd6 {[%clk 00:07:44]} {[%emt 00:00:03]} 10. Be2 {[%clk 00:06:25]} {[%emt
00:00:27]} O-O {[%clk 00:07:45]} {[%emt 00:00:09]} 11. Nxd7 {[%clk 00:06:25]}
{[%emt 00:00:10]} Nxd7 {[%clk 00:07:43]} {[%emt 00:00:11]} 12. Ne5 {[%clk
00:06:23]} {[%emt 00:00:12]} Bxe2 {[%clk 00:07:51]} {[%emt 00:00:03]} 13. Qxe2
{[%clk 00:06:31]} {[%emt 00:00:01]} a5 {[%clk 00:07:38]} {[%emt 00:00:24]} 14.
O-O {[%clk 00:06:22]} {[%emt 00:00:19]} Qc7 {[%clk 00:07:09]} {[%emt 00:00:37]}
15. f4 {[%clk 00:06:30]} {[%emt 00:00:03]} Nf6 {[%clk 00:07:16]} {[%emt
00:00:03]} 16. c4 {[%clk 00:06:29]} {[%emt 00:00:12]} Bxe5 {[%clk 00:07:23]}
{[%emt 00:00:03]} 17. dxe5 {[%clk 00:06:20]} {[%emt 00:00:19]} Ne4 {[%clk
00:07:31]} {[%emt 00:00:02]} 18. Rac1 {[%clk 00:06:20]} {[%emt 00:00:10]} Qd7
{[%clk 00:06:24]} {[%emt 00:01:17]} 19. Rfd1 {[%clk 00:05:45]} {[%emt
00:00:44]} Qe7 {[%clk 00:04:49]} {[%emt 00:01:46]} 20. Rd4 {[%clk 00:04:18]}
{[%emt 00:01:37]} Rfd8 {[%clk 00:04:43]} {[%emt 00:00:17]} 21. cxd5 {[%clk
00:04:05]} {[%emt 00:00:22]} Rxd5 {[%emt 00:01:47]} 22. Rxd5 {[%clk 00:04:00]}
cxd5 {[%clk 00:03:30]} 23. Bd4 {[%clk 00:03:35]} {[%emt 00:00:34]} Qb4 {[%clk
00:02:58]} {[%emt 00:00:42]} 24. Qc2 {[%clk 00:02:57]} {[%emt 00:00:49]} h6
{[%clk 00:02:16]} {[%emt 00:00:51]} 25. Bb2 {[%clk 00:02:37]} {[%emt 00:00:30]}
Kh7 {[%clk 00:02:25]} {[%emt 00:00:02]} 26. a3 {[%clk 00:02:43]} {[%emt
00:00:05]} Qb6 {[%clk 00:02:32]} {[%emt 00:00:02]} 27. Bd4 {[%clk 00:02:49]}
{[%emt 00:00:04]} Qb5 {[%clk 00:02:41]} {[%emt 00:00:01]} 28. a4 {[%clk
00:01:31]} {[%emt 00:01:29]} Qb4 {[%clk 00:02:46]} {[%emt 00:00:05]} 29. Rd1
{[%clk 00:01:24]} {[%emt 00:00:16]} Ra6 {[%clk 00:02:41]} {[%emt 00:00:15]} 30.
Qb2 {[%clk 00:01:00]} {[%emt 00:00:35]} Rc6 {[%clk 00:02:47]} {[%emt 00:00:05]}
31. g4 {[%clk 00:00:35]} {[%emt 00:00:34]} fxg4 {[%clk 00:02:39]} {[%emt
00:00:18]} 32. Qg2 {[%clk 00:00:38]} {[%emt 00:00:07]} Qxb3 {[%clk 00:02:45]}
{[%emt 00:00:04]} 33. Qxg4 {[%clk 00:00:46]} {[%emt 00:00:02]} Qc2 {[%clk
00:02:25]} {[%emt 00:00:30]} 34. Rf1 {[%clk 00:00:48]} {[%emt 00:00:09]} Qd2
{[%clk 00:02:04]} {[%emt 00:00:28]} 35. f5 {[%clk 00:00:52]} {[%emt 00:00:09]}
Rc2 {[%clk 00:02:13]} 36. Qg6+ {[%clk 00:01:00]} {[%emt 00:00:02]} Kg8 {[%clk
00:02:20]} {[%emt 00:00:02]} 37. Qe8+ {[%clk 00:01:09]} {[%emt 00:00:01]}
1/2-1/2

[Event "Couzeix rapide 9 rondes cadences multiples"]
[Site "Couzeix Chess Club, France"]
[Date "2019.03.10"]
[Round "5.4"]
[White "Pottier, Simeon"]
[Black "Bonneau, Alain"]
[Result "1-0"]
[TimeControl "5'+10''pm,  7'+10''pm, 10'+10''pm,"]
[WhiteElo "2151"]
[BlackElo "1548"]

1. d4 {[%clk 00:07:18]} {[%emt 00:00:02]} Nf6 {[%clk 00:07:19]} {[%emt
00:00:01]} 2. c4 {[%clk 00:07:27]} {[%emt 00:00:01]} e5 {[%clk 00:07:27]}
{[%emt 00:00:01]} 3. dxe5 {[%clk 00:07:35]} {[%emt 00:00:02]} Ne4 {[%emt
00:00:03]} 4. Nd2 {[%clk 00:07:40]} {[%emt 00:00:03]} Bb4 {[%clk 00:07:44]}
{[%emt 00:00:02]} 5. a3 {[%clk 00:07:47]} {[%emt 00:00:02]} Bxd2+ {[%clk
00:07:50]} {[%emt 00:00:05]} 6. Bxd2 {[%clk 00:07:55]} {[%emt 00:00:02]} Nxd2
{[%clk 00:07:57]} {[%emt 00:00:03]} 7. Qxd2 {[%clk 00:08:03]} {[%emt 00:00:02]}
Nc6 {[%clk 00:08:05]} {[%emt 00:00:02]} 8. Nf3 {[%clk 00:07:45]} {[%emt
00:00:27]} Qe7 {[%clk 00:08:14]} {[%emt 00:00:02]} 9. Qc3 {[%clk 00:06:01]}
{[%emt 00:01:54]} b6 {[%clk 00:08:23]} {[%emt 00:00:02]} 10. e3 {[%clk
00:05:50]} {[%emt 00:00:20]} Bb7 {[%clk 00:08:29]} {[%emt 00:00:04]} 11. Be2
{[%clk 00:05:35]} {[%emt 00:00:25]} O-O-O {[%clk 00:08:35]} {[%emt 00:00:05]}
12. O-O {[%clk 00:05:10]} {[%emt 00:00:34]} g5 {[%clk 00:08:43]} {[%emt
00:00:03]} 13. b4 {[%clk 00:02:34]} {[%emt 00:02:46]} g4 {[%clk 00:08:51]}
{[%emt 00:00:02]} 14. Nd4 {[%clk 00:02:32]} {[%emt 00:00:12]} Nxe5 {[%clk
00:08:58]} {[%emt 00:00:03]} 15. c5 {[%clk 00:02:28]} {[%emt 00:00:14]} Qg5
{[%clk 00:07:53]} {[%emt 00:01:14]} 16. cxb6 {[%clk 00:02:20]} {[%emt
00:00:18]} axb6 {[%emt 00:00:17]} 17. Rfc1 {[%clk 00:02:06]} {[%emt 00:00:22]}
c6 {[%clk 00:07:02]} {[%emt 00:00:56]} 18. Nb5 {[%clk 00:01:22]} {[%emt
00:00:53]} Kb8 {[%clk 00:06:49]} {[%emt 00:00:23]} 19. Qd4 {[%clk 00:00:49]}
{[%emt 00:00:44]} Nf3+ {[%clk 00:06:56]} {[%emt 00:00:03]} 20. Bxf3 {[%clk
00:00:41]} {[%emt 00:00:18]} gxf3 {[%clk 00:07:05]} {[%emt 00:00:01]} 21. Qd6+
{[%clk 00:00:41]} {[%emt 00:00:10]} Ka8 {[%clk 00:07:11]} {[%emt 00:00:03]} 22.
Nc7+ {[%clk 00:00:40]} {[%emt 00:00:12]} Ka7 {[%clk 00:07:20]} 23. g3 {[%clk
00:00:41]} {[%emt 00:00:09]} h5 {[%clk 00:07:16]} {[%emt 00:00:14]} 24. a4
{[%clk 00:00:40]} {[%emt 00:00:11]} h4 {[%clk 00:07:12]} {[%emt 00:00:13]} 25.
Nb5+ {[%clk 00:00:27]} {[%emt 00:00:23]} cxb5 {[%clk 00:07:19]} {[%emt
00:00:03]} 26. axb5+ {[%clk 00:00:37]} Ba6 {[%clk 00:07:26]} {[%emt 00:00:03]}
27. Rxa6+ {[%clk 00:00:46]} {[%emt 00:00:01]} Kb7 {[%clk 00:07:35]} 28. Qxb6#
{[%clk 00:00:41]} {[%emt 00:00:02]} 1-0

[Event "Couzeix rapide 9 rondes cadences multiples"]
[Site "Couzeix Chess Club, France"]
[Date "2019.03.10"]
[Round "6.1"]
[White "Girel, Joseph"]
[Black "Pottier, Simeon"]
[Result "1-0"]
[TimeControl "5'+10''pm,  7'+10''pm, 10'+10''pm,"]
[WhiteElo "2220"]
[BlackElo "2151"]

1. e4 {[%clk 00:07:05]} {[%emt 00:00:15]} e5 {[%clk 00:07:19]} 2. Nf3 {[%clk
00:07:09]} {[%emt 00:00:06]} Nc6 {[%clk 00:07:25]} {[%emt 00:00:04]} 3. Bb5
{[%clk 00:07:17]} {[%emt 00:00:03]} a6 {[%clk 00:07:33]} {[%emt 00:00:02]} 4.
Bxc6 {[%clk 00:07:20]} {[%emt 00:00:06]} dxc6 {[%clk 00:07:43]} 5. Nc3 {[%clk
00:07:28]} {[%emt 00:00:02]} Bc5 {[%clk 00:07:21]} {[%emt 00:00:32]} 6. Nxe5
{[%clk 00:07:25]} {[%emt 00:00:14]} Bxf2+ {[%clk 00:07:29]} {[%emt 00:00:02]} 7.
Kxf2 {[%clk 00:07:34]} {[%emt 00:00:01]} Qd4+ {[%clk 00:07:38]} {[%emt
00:00:01]} 8. Ke1 {[%clk 00:07:42]} {[%emt 00:00:02]} Qxe5 {[%clk 00:07:46]}
{[%emt 00:00:02]} 9. d4 {[%clk 00:07:50]} {[%emt 00:00:02]} Qe7 {[%clk
00:07:29]} {[%emt 00:00:27]} 10. Qf3 {[%clk 00:07:58]} {[%emt 00:00:02]} Be6
{[%clk 00:07:17]} {[%emt 00:00:22]} 11. Be3 {[%clk 00:07:51]} {[%emt 00:00:17]}
O-O-O {[%clk 00:06:42]} {[%emt 00:00:46]} 12. Kf2 {[%clk 00:07:21]} {[%emt
00:00:40]} Nf6 {[%clk 00:05:43]} {[%emt 00:01:08]} 13. h3 {[%clk 00:07:28]}
{[%emt 00:00:03]} Rhg8 {[%clk 00:04:37]} {[%emt 00:01:17]} 14. Rhf1 {[%clk
00:06:48]} {[%emt 00:00:50]} g5 {[%clk 00:03:14]} {[%emt 00:01:33]} 15. Kg1
{[%clk 00:06:56]} {[%emt 00:00:02]} Rg6 {[%clk 00:03:08]} {[%emt 00:00:16]} 16.
Qf2 {[%clk 00:03:38]} {[%emt 00:03:28]} g4 {[%clk 00:03:01]} {[%emt 00:00:17]}
17. h4 {[%clk 00:03:47]} g3 {[%clk 00:02:22]} {[%emt 00:00:48]} 18. Qf3 {[%clk
00:03:43]} {[%emt 00:00:15]} Bg4 {[%clk 00:02:01]} {[%emt 00:00:31]} 19. Qxg3
{[%clk 00:03:13]} {[%emt 00:00:40]} Nxe4 {[%clk 00:01:27]} {[%emt 00:00:44]} 20.
Nxe4 {[%clk 00:03:15]} {[%emt 00:00:08]} Qxe4 {[%clk 00:01:31]} {[%emt
00:00:06]} 21. Rf4 {[%clk 00:03:00]} {[%emt 00:00:25]} Qe6 {[%clk 00:01:17]}
{[%emt 00:00:24]} 22. Qf2 {[%clk 00:02:56]} {[%emt 00:00:14]} f5 {[%clk
00:00:42]} {[%emt 00:00:44]} 23. Kh2 {[%clk 00:02:55]} {[%emt 00:00:12]} Rdg8
{[%clk 00:00:41]} {[%emt 00:00:12]} 24. g3 {[%clk 00:03:01]} {[%emt 00:00:03]}
Bh5 {[%clk 00:00:45]} {[%emt 00:00:06]} 25. Rg1 {[%clk 00:03:06]} {[%emt
00:00:05]} Re8 {[%clk 00:00:49]} {[%emt 00:00:06]} 26. Rxf5 {[%clk 00:03:01]}
{[%emt 00:00:15]} Qxe3 {[%clk 00:00:19]} {[%emt 00:00:40]} 27. Qxe3 {[%clk
00:03:08]} {[%emt 00:00:03]} Rxe3 {[%clk 00:00:28]} 28. Rxh5 {[%clk 00:03:17]}
Re2+ {[%clk 00:00:35]} {[%emt 00:00:03]} 29. Rg2 {[%clk 00:03:27]} Re7 {[%clk
00:00:37]} {[%emt 00:00:08]} 30. Rf5 {[%clk 00:03:27]} {[%emt 00:00:09]} Kd7
{[%clk 00:00:44]} {[%emt 00:00:03]} 31. h5 {[%clk 00:03:32]} {[%emt 00:00:05]}
Rd6 {[%clk 00:00:53]} {[%emt 00:00:01]} 32. c3 {[%clk 00:03:42]} Rde6 {[%clk
00:01:02]} 33. g4 {[%clk 00:03:49]} {[%emt 00:00:03]} Re2 {[%clk 00:01:07]}
{[%emt 00:00:05]} 34. Rff2 {[%clk 00:03:58]} Re1 {[%clk 00:01:15]} {[%emt
00:00:02]} 35. g5 {[%clk 00:04:05]} {[%emt 00:00:03]} R1e4 {[%clk 00:01:04]}
{[%emt 00:00:20]} 36. Rf3 {[%clk 00:03:51]} {[%emt 00:00:24]} Rg7 {[%clk
00:00:57]} {[%emt 00:00:17]} 37. h6 {[%clk 00:03:41]} {[%emt 00:00:21]} Rge7
{[%clk 00:00:55]} {[%emt 00:00:12]} 38. g6 {[%clk 00:03:30]} {[%emt 00:00:21]}
hxg6 {[%clk 00:00:48]} {[%emt 00:00:17]} 39. Rxg6 {[%clk 00:03:39]} {[%emt
00:00:02]} Rh7 {[%clk 00:00:29]} {[%emt 00:00:26]} 40. Rg7+ {[%clk 00:03:36]}
{[%emt 00:00:15]} Re7 {[%clk 00:00:37]} {[%emt 00:00:01]} 41. Rxh7 {[%clk
00:03:19]} {[%emt 00:00:28]} Rxh7 {[%clk 00:00:45]} {[%emt 00:00:02]} 42. Rh3
{[%clk 00:03:28]} {[%emt 00:00:01]} Ke6 {[%clk 00:00:53]} {[%emt 00:00:02]} 43.
Kg3 {[%clk 00:03:34]} {[%emt 00:00:04]} Kf5 {[%clk 00:00:59]} {[%emt 00:00:04]}
44. Kf3 {[%clk 00:03:43]} Kg5 {[%clk 00:01:03]} {[%emt 00:00:06]} 45. Ke4
{[%clk 00:03:49]} {[%emt 00:00:04]} Re7+ {[%clk 00:01:09]} {[%emt 00:00:04]} 46.
Kd3 {[%clk 00:03:58]} Rh7 {[%clk 00:01:18]} {[%emt 00:00:01]} 47. Kc4 {[%clk
00:03:58]} {[%emt 00:00:10]} Kf5 {[%clk 00:00:25]} {[%emt 00:01:02]} 48. b4
{[%clk 00:04:00]} {[%emt 00:00:09]} Ke6 {[%clk 00:00:32]} {[%emt 00:00:03]} 49.
a4 {[%clk 00:04:07]} {[%emt 00:00:03]} Kd6 {[%clk 00:00:37]} {[%emt 00:00:04]}
50. b5 {[%clk 00:04:01]} {[%emt 00:00:16]} cxb5+ {[%clk 00:00:42]} {[%emt
00:00:06]} 51. axb5 {[%clk 00:04:10]} axb5+ {[%clk 00:00:50]} {[%emt 00:00:01]}
52. Kxb5 {[%clk 00:04:19]} {[%emt 00:00:01]} Kd7 {[%clk 00:00:57]} {[%emt
00:00:03]} 53. c4 {[%clk 00:04:26]} {[%emt 00:00:04]} Kd6 {[%clk 00:01:02]}
{[%emt 00:00:05]} 54. Rh5 {[%clk 00:04:32]} {[%emt 00:00:04]} Kd7 {[%clk
00:01:08]} {[%emt 00:00:04]} 55. d5 {[%clk 00:04:32]} {[%emt 00:00:10]} Kc8
{[%clk 00:00:16]} {[%emt 00:01:02]} 56. c5 {[%clk 00:04:39]} {[%emt 00:00:04]}
Kd7 {[%clk 00:00:26]} 57. Rh1 {[%clk 00:04:36]} {[%emt 00:00:13]} Kd8 {[%clk
00:00:31]} {[%emt 00:00:05]} 58. c6 {[%clk 00:03:50]} {[%emt 00:00:56]} bxc6+
{[%clk 00:00:20]} {[%emt 00:00:20]} 59. dxc6 {[%clk 00:03:59]} Ke7 {[%clk
00:00:29]} 60. Ka6 {[%clk 00:03:37]} {[%emt 00:00:32]} Ke6 {[%clk 00:00:30]}
{[%emt 00:00:09]} 61. Ka7 {[%clk 00:03:39]} {[%emt 00:00:07]} Kd5 {[%clk
00:00:28]} {[%emt 00:00:12]} 62. Kb7 {[%clk 00:03:47]} {[%emt 00:00:03]} Kd6
{[%clk 00:00:37]} 63. Rh5 {[%clk 00:03:52]} {[%emt 00:00:05]} Ke6 {[%clk
00:00:42]} {[%emt 00:00:05]} 64. Rh2 {[%clk 00:03:48]} {[%emt 00:00:14]} Kd6
{[%clk 00:00:51]} {[%emt 00:00:01]} 65. Rd2+ {[%clk 00:03:57]} Kc5 {[%clk
00:00:27]} {[%emt 00:00:34]} 66. Rd7 {[%clk 00:03:48]} {[%emt 00:00:18]} Rxh6
{[%clk 00:00:35]} {[%emt 00:00:01]} 67. Rxc7 {[%clk 00:03:58]} Rh1 {[%clk
00:00:36]} {[%emt 00:00:09]} 68. Rg7 {[%clk 00:04:06]} {[%emt 00:00:02]} Rb1+
{[%clk 00:00:37]} {[%emt 00:00:10]} 69. Kc7 {[%clk 00:04:15]} {[%emt 00:00:01]}
Kb5 {[%clk 00:00:33]} {[%emt 00:00:13]} 70. Rg5+ {[%clk 00:04:23]} {[%emt
00:00:03]} Ka6 {[%clk 00:00:42]} {[%emt 00:00:01]} 71. Rg2 {[%clk 00:04:21]}
{[%emt 00:00:11]} Rh1 {[%clk 00:00:34]} {[%emt 00:00:18]} 72. Ra2+ {[%clk
00:04:30]} {[%emt 00:00:02]} Kb5 {[%clk 00:00:43]} 73. Kb7 {[%clk 00:04:37]}
{[%emt 00:00:02]} Rh6 {[%clk 00:00:36]} {[%emt 00:00:17]} 74. Rb2+ {[%clk
00:04:41]} {[%emt 00:00:06]} Ka5 {[%clk 00:00:15]} {[%emt 00:00:31]} 75. c7
{[%clk 00:04:47]} {[%emt 00:00:04]} Rh7 {[%clk 00:00:24]} {[%emt 00:00:01]} 76.
Kb8 {[%clk 00:04:56]} {[%emt 00:00:01]} 1-0

[Event "Couzeix rapide 9 rondes cadences multiples"]
[Site "Couzeix Chess Club, France"]
[Date "2019.03.10"]
[Round "6.2"]
[White "Besse, Florian"]
[Black "Dubreuil, Remy"]
[Result "0-1"]
[TimeControl "5'+10''pm,  7'+10''pm, 10'+10''pm,"]
[WhiteElo "1762"]
[BlackElo "1714"]

1. d4 {[%clk 00:07:16]} {[%emt 00:00:03]} Nf6 {[%clk 00:07:19]} {[%emt
00:00:02]} 2. Nf3 {[%clk 00:07:23]} {[%emt 00:00:03]} g6 {[%clk 00:07:27]}
{[%emt 00:00:02]} 3. Nc3 {[%clk 00:07:30]} {[%emt 00:00:03]} Bg7 {[%clk
00:07:36]} {[%emt 00:00:02]} 4. e4 {[%clk 00:07:38]} {[%emt 00:00:02]} d6
{[%clk 00:07:41]} {[%emt 00:00:05]} 5. h3 {[%clk 00:07:40]} {[%emt 00:00:07]}
O-O {[%clk 00:07:45]} {[%emt 00:00:07]} 6. Be3 {[%clk 00:07:41]} {[%emt
00:00:08]} Nbd7 {[%clk 00:07:42]} {[%emt 00:00:13]} 7. Qd2 {[%clk 00:07:35]}
{[%emt 00:00:15]} c5 {[%clk 00:07:32]} {[%emt 00:00:21]} 8. Bh6 {[%clk
00:07:30]} {[%emt 00:00:15]} cxd4 {[%clk 00:07:30]} {[%emt 00:00:12]} 9. Nxd4
{[%clk 00:07:34]} {[%emt 00:00:07]} Qb6 {[%clk 00:07:16]} {[%emt 00:00:24]} 10.
Bxg7 {[%clk 00:07:14]} {[%emt 00:00:30]} Kxg7 {[%clk 00:07:24]} {[%emt
00:00:02]} 11. Nb3 {[%clk 00:07:07]} {[%emt 00:00:17]} Nc5 {[%clk 00:07:21]}
{[%emt 00:00:12]} 12. Nxc5 {[%clk 00:06:46]} {[%emt 00:00:32]} Qxc5 {[%clk
00:07:25]} {[%emt 00:00:06]} 13. Be2 {[%clk 00:06:18]} {[%emt 00:00:37]} Be6
{[%clk 00:07:23]} {[%emt 00:00:12]} 14. h4 {[%clk 00:05:54]} {[%emt 00:00:34]}
b5 {[%clk 00:07:09]} {[%emt 00:00:24]} 15. h5 {[%clk 00:05:15]} {[%emt
00:00:50]} b4 {[%clk 00:06:41]} {[%emt 00:00:37]} 16. Nd5 {[%clk 00:05:23]}
{[%emt 00:00:02]} Bxd5 {[%clk 00:06:27]} {[%emt 00:00:24]} 17. exd5 {[%clk
00:05:25]} {[%emt 00:00:08]} Qxd5 {[%clk 00:06:18]} {[%emt 00:00:18]} 18. Qf4
{[%clk 00:04:42]} {[%emt 00:00:53]} Qe5 {[%clk 00:06:10]} {[%emt 00:00:18]} 19.
Qd2 {[%clk 00:03:09]} {[%emt 00:01:44]} Ne4 {[%clk 00:05:37]} {[%emt 00:00:42]}
20. Qe3 {[%clk 00:01:51]} {[%emt 00:01:29]} Qxb2 {[%clk 00:05:12]} {[%emt
00:00:35]} 21. Rc1 {[%clk 00:01:42]} {[%emt 00:00:18]} Qc3+ {[%clk 00:05:17]}
{[%emt 00:00:05]} 22. Qxc3+ {[%clk 00:01:49]} {[%emt 00:00:03]} Nxc3 {[%clk
00:05:25]} {[%emt 00:00:02]} 23. Bd3 {[%clk 00:01:51]} {[%emt 00:00:08]} e5
{[%clk 00:05:15]} {[%emt 00:00:20]} 24. hxg6 {[%clk 00:01:57]} {[%emt
00:00:03]} hxg6 {[%clk 00:05:19]} {[%emt 00:00:06]} 25. Kd2 {[%clk 00:02:05]}
{[%emt 00:00:02]} e4 {[%clk 00:05:19]} {[%emt 00:00:10]} 26. Ba6 {[%clk
00:02:01]} {[%emt 00:00:15]} Rh8 {[%clk 00:05:10]} {[%emt 00:00:19]} 27. Rhg1
{[%clk 00:01:52]} {[%emt 00:00:15]} Rab8 {[%clk 00:05:13]} {[%emt 00:00:11]} 28.
a3 {[%clk 00:01:58]} {[%emt 00:00:04]} Nd5 {[%clk 00:04:55]} {[%emt 00:00:26]}
29. a4 {[%clk 00:01:42]} {[%emt 00:00:27]} Nc3 {[%clk 00:04:51]} {[%emt
00:00:14]} 30. Rcf1 {[%clk 00:01:18]} {[%emt 00:00:35]} d5 {[%clk 00:04:57]}
{[%emt 00:00:04]} 31. f3 {[%clk 00:01:27]} {[%emt 00:00:01]} f5 {[%clk
00:04:56]} {[%emt 00:00:11]} 32. fxe4 {[%clk 00:01:28]} {[%emt 00:00:09]} dxe4
{[%clk 00:05:04]} {[%emt 00:00:02]} 33. Bc4 {[%clk 00:01:36]} {[%emt 00:00:02]}
Nxa4 {[%clk 00:04:48]} {[%emt 00:00:25]} 34. g4 {[%clk 00:01:45]} {[%emt
00:00:02]} Kf6 {[%clk 00:04:39]} {[%emt 00:00:18]} 35. gxf5 {[%clk 00:01:30]}
{[%emt 00:00:25]} gxf5 {[%clk 00:04:45]} {[%emt 00:00:03]} 36. Rf2 {[%clk
00:01:36]} {[%emt 00:00:04]} Rh3 {[%clk 00:04:33]} {[%emt 00:00:22]} 37. Rgf1
{[%clk 00:01:38]} {[%emt 00:00:08]} e3+ {[%clk 00:04:40]} {[%emt 00:00:04]} 0-1